bitfinex-derivatives/quotes_SOLF0:USTF0_20250929
["timestamp","ask_amount","ask_price","bid_price","bid_amount"]
[1759107892698,12.2285,209.28,209.22,7.1]
[1759107893396,4.2988,209.27,209.22,7.1]
[1759107893597,7.93,209.26,209.22,7.1]
[1759107893798,4.2988,209.27,209.22,7.1]
[1759107894000,7.89,209.26,209.19,5.70296184]
[1759107896097,7.89,209.26,209.2,7.11]
[1759107899005,7.89,209.26,209.21,1.40266184]
[1759107899304,7.89,209.3,209.24,7.11]
[1759107900700,7.89,209.3,209.21,1.40266184]
[1759107901201,4.2986,209.28,209.21,1.40266184]
[1759107901406,7.89,209.27,209.21,1.40266184]
[1759107903603,12.1886,209.28,209.22,4.2997]
[1759107904209,7.89,209.28,209.22,4.2997]
[1759107905207,7.89,209.28,209.18,116.32]
[1759107905208,7.89,209.28,209.25,7.11]
[1759107905910,9.0243179,209.32,209.25,8.51266184]
[1759107906614,9.0243179,209.32,209.26,4.2987]
[1759107907115,7.89,209.32,209.26,4.2987]
[1759107908012,7.89,209.32,209.25,8.51266184]
[1759107908208,12.1878,209.32,209.25,8.51266184]
[1759107909412,7.89,209.32,209.26,4.2989]
[1759107909708,7.89,209.32,209.27,1.40266184]
[1759107910015,7.89,209.35,209.29,1.40266184]
[1759107910315,7.89,209.35,209.28,8.51266184]
[1759107910520,7.89,209.35,209.28,12.81096184]
[1759107910808,7.89,209.35,209.28,7.11]
[1759107911016,7.89,209.35,209.3,1.40266184]
[1759107911210,7.89,209.35,209.31,7.11]
[1759107911413,7.89,209.39,209.32,8.51266184]
[1759107911715,1.40266184,209.43,209.35,7.11]
[1759107911917,7.55,209.42,209.34,1.40266184]
[1759107913309,11.8456,209.42,209.34,1.40266184]
[1759107914617,11.8456,209.42,209.34,23.07545418]
[1759107914811,11.8456,209.42,209.34,8.51266184]
[1759107917321,7.55,209.42,209.36,8.51266184]
[1759107920416,7.55,209.42,209.36,12.80926184]
[1759107920621,7.55,209.42,209.38,8.51266184]
[1759107921016,7.55,209.44,209.38,8.51266184]
[1759107925130,11.8454,209.44,209.38,8.51266184]
[1759107925317,7.75,209.44,209.35,8.53266184]
[1759107926529,4.2956,209.43,209.35,8.53266184]
[1759107927630,4.2956,209.43,209.36,7.13]
[1759107928533,7.75,209.42,209.36,7.13]
[1759107929826,7.75,209.42,209.36,11.4267]
[1759107937345,7.75,209.45,209.38,7.13]
[1759107937529,9.15266184,209.45,209.38,7.13]
[1759107938638,4.2953,209.44,209.38,7.13]
[1759107939235,7.75,209.43,209.37,12.82906184]
[1759107941039,7.75,209.43,209.38,7.13]
[1759107941239,7.75,209.43,209.37,5.69906184]
[1759107941440,4.2953,209.44,209.37,5.69906184]
[1759107941638,12.0453,209.44,209.38,7.13]
[1759107945545,4.2955,209.43,209.38,7.13]
[1759107945843,7.75,209.46,209.36,116.1]
[1759107946247,66.8058,209.47,209.36,116.1]
[1759107946542,4.2957,209.42,209.36,116.1]
[1759107947037,4.2957,209.42,209.37,7.13]
[1759107947231,12.0457,209.42,209.36,123.23]
[1759107949248,12.0457,209.42,209.36,7.13]
[1759107955255,12.0457,209.42,209.36,11.4267]
[1759107955450,7.75,209.42,209.36,11.4267]
[1759107958256,12.0457,209.42,209.36,7.13]
[1759107958455,7.57,209.46,209.35,116.1]
[1759107958752,7.57,209.44,209.35,116.1]
[1759107958950,7.57,209.43,209.35,123.21]
[1759107959151,66.8058,209.47,209.35,123.21]
[1759107959352,3.31805167,209.46,209.35,127.5069]
[1759107959553,4.2958,209.42,209.35,123.21]
[1759107959757,11.8658,209.42,209.35,123.21]
[1759107960153,7.57,209.42,209.38,7.11]
[1759107960655,7.57,209.47,209.38,7.11]
[1759107960856,7.57,209.45,209.38,7.11]
[1759107961557,4.2955,209.43,209.38,7.11]
[1759107961758,11.8655,209.43,209.37,11.4066]
[1759107962261,4.295,209.45,209.39,7.11]
[1759107962853,7.57,209.46,209.36,116.08]
[1759107963051,7.57,209.44,209.36,116.08]
[1759107963254,3.31780189,209.45,209.36,116.08]
[1759107963255,7.57,209.43,209.36,116.08]
[1759107963555,4.2957,209.42,209.36,116.08]
[1759107963958,4.2957,209.42,209.37,7.11]
[1759107964154,7.57,209.41,209.37,7.11]
[1759107964551,4.2957,209.42,209.37,7.11]
[1759107965360,7.57,209.41,209.36,116.08]
[1759107965659,7.57,209.41,209.37,7.11]
[1759107965854,7.57,209.41,209.36,116.08]
[1759107966649,7.57,209.41,209.37,7.11]
[1759107967458,7.57,209.42,209.37,7.11]
[1759107967653,4.2953,209.44,209.37,7.11]
[1759107968371,7.57,209.45,209.38,4.2962]
[1759107968663,7.57,209.45,209.39,7.11]
[1759107968859,11.8644,209.48,209.4,7.11]
[1759107969065,11.8644,209.48,209.42,7.11]
[1759107973763,11.8644,209.48,209.42,123.19]
[1759107974661,11.8644,209.48,209.42,7.11]
[1759107974864,11.8644,209.48,209.42,123.19]
[1759107976568,4.2947,209.47,209.42,123.19]
[1759107976762,4.2947,209.47,209.42,7.11]
[1759107976962,4.2947,209.47,209.42,123.17]
[1759107976963,7.26,209.46,209.42,123.17]
[1759107977269,4.295,209.46,209.42,7.11]
[1759107977466,7.26,209.45,209.42,7.11]
[1759107980867,4.295,209.46,209.42,7.11]
[1759107981064,7.26,209.45,209.41,123.17]
[1759107981260,7.26,209.45,209.42,7.11]
[1759107981766,7.26,209.45,209.41,116.06]
[1759107981971,66.7976,209.5,209.41,116.06]
[1759107981972,7.26,209.48,209.42,7.11]
[1759107982572,11.5545,209.48,209.42,7.11]
[1759107988981,422.9715,209.59,209.42,7.11]
[1759107988982,7.74,209.54,209.42,7.11]
[1759107989482,7.74,209.54,209.47,7.11]
[1759107989788,7.74,209.54,209.48,123.15]
[1759107993483,12.0326,209.57,209.49,7.11]
[1759107993684,7.74,209.57,209.49,7.11]
[1759107993881,66.771,209.58,209.49,116.02]
[1759107994082,7.74,209.56,209.49,116.02]
[1759107994283,4.2928,209.56,209.49,116.02]
[1759107994482,7.74,209.55,209.49,116.02]
[1759107995285,7.74,209.55,209.48,7.11]
[1759107995487,12.0331,209.55,209.49,116.02]
[1759107995687,12.0331,209.55,209.49,123.13]
[1759107997087,7.74,209.53,209.5,7.11]
[1759107999291,12.0335,209.53,209.5,7.11]
[1759107999490,7.74,209.52,209.49,116.02]
[1759108000189,7.74,209.52,209.48,116.02]
[1759108000393,7.74,209.52,209.48,123.13]
[1759108000697,7.74,209.52,209.48,116.02]
[1759108000893,4.2935,209.53,209.48,116.02]
[1759108001097,12.033,209.55,209.49,7.11]
[1759108002897,4.293,209.55,209.49,7.11]
[1759108003285,7.74,209.56,209.49,7.11]
[1759108004287,7.74,209.56,209.5,1.3987794]
[1759108005699,12.0329,209.56,209.5,1.3987794]
[1759108010004,12.0329,209.56,209.5,117.3987794]
[1759108011404,12.0329,209.56,209.5,124.5087794]
[1759108013609,12.0329,209.56,209.5,123.11]
[1759108013804,12.0329,209.56,209.5,124.5087794]
[1759108015814,7.62,209.53,209.46,7.1]
[1759108016012,7.62,209.53,209.47,20.8587794]
[1759108016210,7.62,209.53,209.49,1.3987794]
[1759108016410,7.62,209.53,209.5,7.1]
[1759108016609,7.62,209.53,209.49,1.3987794]
[1759108016909,7.62,209.53,209.5,7.1]
[1759108017110,7.62,209.53,209.49,1.3987794]
[1759108017312,7.62,209.53,209.5,7.1]
[1759108017614,1.3987794,209.57,209.5,7.1]
[1759108017813,7.62,209.56,209.5,7.1]
[1759108018314,4.2933,209.54,209.48,41.0187794]
[1759108018608,4.2933,209.54,209.49,7.1]
[1759108019003,4.2933,209.54,209.48,41.0187794]
[1759108019208,4.2933,209.54,209.49,7.1]
[1759108019411,4.2933,209.54,209.48,63.8387794]
[1759108019615,7.62,209.53,209.49,7.1]
[1759108020610,7.62,209.53,209.49,1.3987794]
[1759108021007,7.62,209.56,209.5,7.1]
[1759108021311,7.62,209.56,209.52,7.1]
[1759108021511,7.62,209.56,209.51,1.3987794]
[1759108021818,7.62,209.56,209.52,7.1]
[1759108022115,7.62,209.57,209.52,7.1]
[1759108022417,4.2924,209.58,209.52,7.1]
[1759108022612,7.62,209.57,209.52,7.1]
[1759108022808,7.62,209.57,209.51,8.4987794]
[1759108023416,11.9127,209.57,209.51,8.4987794]
[1759108024007,11.9127,209.57,209.51,7.1]
[1759108024008,7.62,209.57,209.51,7.1]
[1759108024518,7.62,209.59,209.51,7.1]
[1759108024713,7.62,209.57,209.51,7.1]
[1759108024914,7.62,209.57,209.51,8.4987794]
[1759108027512,4.292,209.6,209.54,7.1]
[1759108027715,5.48462171,209.6,209.54,7.1]
[1759108028520,4.2923,209.59,209.53,1.3987794]
[1759108028721,4.2923,209.59,209.54,7.1]
[1759108028918,4.2923,209.59,209.53,8.4987794]
[1759108029425,7.62,209.6,209.53,8.4987794]
[1759108031126,7.62,209.6,209.53,12.7919794]
[1759108031329,1.16674375,209.63,209.55,1.3987794]
[1759108031330,13.07814375,209.63,209.55,1.3987794]
[1759108031529,3.28558555,209.62,209.56,7.1]
[1759108031723,3.28558555,209.61,209.55,1.3987794]
[1759108031928,7.46,209.62,209.56,7.1]
[1759108032124,3.28559753,209.61,209.55,1.3987794]
[1759108032330,11.7514,209.63,209.56,7.1]
[1759108032533,3.2862856,209.62,209.56,7.1]
[1759108032727,10.7462856,209.61,209.56,7.1]
[1759108033030,4.2914,209.63,209.55,5.6916794]
[1759108033333,15.02941216,209.62,209.56,7.1]
[1759108033525,7.46,209.6,209.55,5.6916794]
[1759108034022,7.46,209.6,209.56,7.1]
[1759108034928,7.46,209.6,209.55,5.6916794]
[1759108035325,7.46,209.61,209.56,7.1]
[1759108035525,7.46,209.61,209.55,12.7916794]
[1759108036528,7.46,209.61,209.56,7.1]
[1759108036929,4.2912,209.64,209.57,4.2925]
[1759108037127,3.27753921,209.63,209.58,7.1]
[1759108037428,11.7512,209.64,209.58,7.1]
[1759108037623,3.27690115,209.63,209.58,7.1]
[1759108037829,3.27682088,209.62,209.58,7.1]
[1759108038122,7.46,209.62,209.58,7.1]
[1759108038330,7.46,209.62,209.59,7.1]
[1759108038721,7.46,209.62,209.56,7.1]
[1759108039729,4.2917,209.61,209.56,7.1]
[1759108040228,7.46,209.6,209.56,7.1]
[1759108040530,7.46,209.6,209.55,1.3987794]
[1759108040723,7.46,209.6,209.56,7.1]
[1759108040925,7.46,209.6,209.55,1.3987794]
[1759108041126,7.46,209.6,209.56,7.1]
[1759108041320,4.2917,209.61,209.56,7.1]
[1759108041524,7.46,209.6,209.56,7.1]
[1759108041725,4.2917,209.61,209.56,7.1]
[1759108041921,7.46,209.6,209.56,7.1]
[1759108042128,8.8587794,209.61,209.51,7.1]
[1759108042333,7.46,209.58,209.51,7.1]
[1759108043436,7.46,209.58,209.51,8.4987794]
[1759108047838,11.7525,209.58,209.51,7.1]
[1759108048242,7.46,209.58,209.51,7.1]
[1759108048443,4.2927,209.57,209.51,7.1]
[1759108051142,7.6,209.62,209.55,1.3987794]
[1759108051448,66.7454,209.66,209.55,1.3987794]
[1759108051449,10.87144249,209.61,209.55,8.5287794]
[1759108051744,7.6,209.61,209.55,8.5287794]
[1759108052346,11.8912,209.64,209.57,1.3987794]
[1759108052543,7.6,209.64,209.58,7.13]
[1759108052739,7.6,209.64,209.58,11.4223]
[1759108053139,7.6,209.64,209.6,7.13]
[1759108053447,11.8905,209.68,209.61,7.13]
[1759108054941,11.8905,209.68,209.61,21.183392]
[1759108055136,7.6,209.68,209.61,26.8736714]
[1759108055847,7.6,209.68,209.61,14.053392]
[1759108056051,7.6,209.66,209.58,4.2922]
[1759108056745,7.6,209.65,209.57,8.5287794]
[1759108057350,7.6,209.65,209.57,12.8211794]
[1759108057946,7.6,209.65,209.57,27.07325192]
[1759108058949,7.6,209.65,209.58,7.13]
[1759108059151,11.8911,209.65,209.58,7.13]
[1759108060847,4.2911,209.65,209.58,7.13]
[1759108061050,4.2905,209.67,209.6,7.13]
[1759108061252,7.6,209.66,209.6,7.13]
[1759108061455,11.8909,209.66,209.6,7.13]
[1759108062742,4.2911,209.65,209.6,7.13]
[1759108062950,7.6,209.64,209.6,7.13]
[1759108063547,4.2911,209.65,209.6,7.13]
[1759108063748,4.2911,209.65,209.58,1.3987794]
[1759108063749,7.6,209.64,209.58,1.3987794]
[1759108066243,7.6,209.64,209.57,25.61092375]
[1759108066446,7.6,209.64,209.57,21.31852375]
[1759108067544,7.6,209.64,209.58,4.2922]
[1759108068852,11.8913,209.64,209.57,21.31852375]
[1759108073058,11.8913,209.64,209.58,7.13]
[1759108074053,7.6,209.64,209.58,11.4222]
[1759108074253,7.6,209.64,209.58,4.2922]
[1759108074556,7.64,209.65,209.59,7.1]
[1759108074756,7.64,209.68,209.59,7.1]
[1759108075851,4.2906,209.67,209.59,11.392]
[1759108076058,4.2906,209.67,209.59,7.1]
[1759108076959,7.64,209.68,209.59,7.1]
[1759108078558,7.64,209.68,209.63,4.2912]
[1759108078763,7.64,209.69,209.63,4.2912]
[1759108079062,4.2901,209.7,209.63,4.2912]
[1759108079265,11.9301,209.7,209.64,7.1]
[1759108082966,7.64,209.7,209.64,11.391]
[1759108091075,11.93,209.7,209.62,115.88]
[1759108091276,7.64,209.69,209.62,115.88]
[1759108092375,7.64,209.69,209.62,120.1714]
[1759108093275,7.77,209.69,209.62,120.1714]
[1759108094478,7.77,209.69,209.62,127.2714]
[1759108096882,7.77,209.67,209.59,7.1]
[1759108098683,12.0606,209.67,209.59,7.1]
[1759108099486,12.0606,209.67,209.59,4.292]
[1759108099682,12.0606,209.67,209.6,7.1]
[1759108100680,12.0606,209.67,209.6,11.3918]
[1759108103388,7.77,209.67,209.61,7.1]
[1759108105285,66.7296,209.71,209.59,121.21093957]
[1759108105485,7.94,209.7,209.58,16.74323957]
[1759108106189,7.94,209.7,209.59,7.1]
[1759108106579,4.2905,209.67,209.59,7.1]
[1759108106781,7.94,209.65,209.57,130.04852375]
[1759108106986,66.7396,209.68,209.57,130.04852375]
[1759108107487,7.94,209.65,209.58,7.1]
[1759108107695,7.94,209.7,209.58,7.1]
[1759108107987,7.94,209.7,209.6,7.1]
[1759108108284,7.94,209.7,209.63,4.2913]
[1759108108491,7.94,209.7,209.64,7.1]
[1759108109182,12.2299,209.7,209.64,7.1]
[1759108110484,7.94,209.7,209.64,7.1]
[1759108114593,7.94,209.7,209.66,7.1]
[1759108114788,7.94,209.71,209.66,7.1]
[1759108115286,4.2895,209.72,209.66,7.1]
[1759108115495,12.2295,209.72,209.66,7.1]
[1759108116392,4.2899,209.71,209.66,7.1]
[1759108116689,7.94,209.7,209.63,4.2913]
[1759108116991,4.2901,209.69,209.62,7.1]
[1759108117189,4.2901,209.69,209.62,12.45093957]
[1759108117389,4.2901,209.69,209.62,7.1]
[1759108117390,7.94,209.68,209.62,7.1]
[1759108118392,7.94,209.66,209.59,5.35093957]
[1759108119091,4.2911,209.65,209.59,5.35093957]
[1759108119495,7.94,209.64,209.58,5.35093957]
[1759108121494,7.94,209.62,209.58,5.35093957]
[1759108121791,4.2913,209.63,209.57,15.27220885]
[1759108122194,7.94,209.62,209.57,15.27220885]
[1759108122591,4.2913,209.63,209.57,15.27220885]
[1759108122791,7.94,209.62,209.57,15.27220885]
[1759108123199,4.2917,209.62,209.57,15.27220885]
[1759108123499,7.94,209.61,209.57,15.27220885]
[1759108123797,4.2917,209.62,209.57,15.27220885]
[1759108123992,7.94,209.61,209.57,15.27220885]
[1759108124392,4.2917,209.62,209.57,15.27220885]
[1759108125095,66.7611,209.61,209.52,115.86]
[1759108125293,7.94,209.6,209.52,115.86]
[1759108125493,66.7611,209.61,209.52,115.86]
[1759108125695,7.94,209.6,209.52,115.86]
[1759108126090,66.7611,209.61,209.52,115.86]
[1759108126299,7.94,209.6,209.52,115.86]
[1759108126499,66.7611,209.61,209.52,115.86]
[1759108126699,7.94,209.56,209.53,7.1]
[1759108127495,68.94496237,209.61,209.5,5.35093957]
[1759108127496,7.94,209.55,209.5,5.35093957]
[1759108127701,7.94,209.57,209.5,7.1]
[1759108128294,66.7678,209.59,209.5,7.1]
[1759108128295,4.2932,209.54,209.5,21.09633961]
[1759108128498,7.94,209.52,209.46,122.96]
[1759108128701,7.94,209.5,209.46,122.96]
[1759108129199,7.94,209.53,209.47,7.1]
[1759108130796,1.3993309,209.56,209.47,4.2945]
[1759108130994,9.3393309,209.56,209.48,7.1]
[1759108131701,13.6321309,209.56,209.48,7.1]
[1759108133203,7.94,209.54,209.48,7.1]
[1759108136303,7.89,209.52,209.46,130.47886851]
[1759108136500,9.2893309,209.52,209.46,130.47886851]
[1759108137407,13.5831309,209.52,209.46,130.47886851]
[1759108137701,7.89,209.51,209.46,130.47886851]
[1759108138001,4.2941,209.5,209.46,14.61886851]
[1759108138209,4.2941,209.5,209.44,7.11]
[1759108138394,12.1841,209.5,209.44,7.11]
[1759108139205,12.1841,209.5,209.44,21.46826799]
[1759108139405,12.1841,209.5,209.44,7.11]
[1759108141397,1.3993309,209.48,209.42,14.05325718]
[1759108141711,1.3993309,209.46,209.4,96.62]
[1759108141903,4.2954,209.43,209.38,7.11]
[1759108142310,7.89,209.42,209.38,7.11]
[1759108142609,7.89,209.43,209.38,7.11]
[1759108143204,1.3993309,209.44,209.38,7.11]
[1759108143613,7.89,209.41,209.38,7.11]
[1759108144510,7.89,209.41,209.38,21.20887882]
[1759108148213,7.89,209.41,209.38,7.11]
[1759108148412,7.89,209.42,209.35,1.3993309]
[1759108149208,7.89,209.42,209.36,7.11]
[1759108150007,9.2893309,209.46,209.38,7.11]
[1759108152916,9.2893309,209.46,209.38,8.5093309]
[1759108153615,13.5843309,209.46,209.38,8.5093309]
[1759108155618,4.2953,209.44,209.38,8.5093309]
[1759108156320,11.9153,209.44,209.38,8.5093309]
[1759108156814,11.9153,209.44,209.38,7.11]
[1759108157117,7.62,209.42,209.36,1.3993309]
[1759108157312,1.3993309,209.44,209.35,21.31691472]
[1759108157513,7.62,209.43,209.35,21.31691472]
[1759108157712,7.62,209.41,209.35,21.31691472]
[1759108158619,11.916,209.41,209.35,21.31691472]
[1759108158919,7.62,209.41,209.35,21.31691472]
[1759108159109,1.3993309,209.42,209.35,14.21691472]
[1759108159309,1.3993309,209.42,209.34,116.04]
[1759108159514,7.62,209.41,209.34,116.04]
[1759108160012,4.2964,209.39,209.34,116.04]
[1759108160214,7.62,209.39,209.32,7.1]
[1759108161817,4.2966,209.38,209.32,7.1]
[1759108163724,7.62,209.39,209.32,7.1]
[1759108163925,7.62,209.39,209.33,7.11]
[1759108164739,7.62,209.39,209.33,11.4073]
[1759108167336,7.62,209.39,209.33,7.11]
[1759108167838,11.9164,209.39,209.33,7.11]
[1759108168534,7.62,209.39,209.33,8.5093309]
[1759108172339,7.62,209.39,209.33,7.11]
[1759108173134,7.67,209.35,209.32,14.22257033]
[1759108173336,7.67,209.35,209.29,67.55360914]
[1759108173639,7.67,209.35,209.3,7.11]
[1759108174135,11.9672,209.35,209.3,7.11]
[1759108174436,7.67,209.35,209.29,72.17]
[1759108175036,7.67,209.35,209.29,86.44256772]
[1759108175643,7.67,209.33,209.29,86.44256772]
[1759108176241,7.67,209.33,209.29,79.33256772]
[1759108176442,7.67,209.33,209.29,86.44256772]
[1759108176839,4.2974,209.34,209.29,86.44256772]
[1759108177145,7.67,209.33,209.3,7.11]
[1759108177443,11.9677,209.32,209.3,7.11]
[1759108177834,11.9677,209.32,209.29,14.27256772]
[1759108178045,11.9677,209.32,209.29,7.11]
[1759108178238,11.9677,209.32,209.29,21.08603287]
[1759108178844,7.67,209.31,209.29,21.08603287]
[1759108180844,4.2977,209.32,209.3,7.11]
[1759108181139,7.67,209.33,209.3,7.11]
[1759108181742,4.2969,209.36,209.3,7.11]
[1759108182141,7.67,209.37,209.3,7.11]
[1759108183740,4.2972,209.35,209.3,7.11]
[1759108183948,4.2972,209.35,209.29,21.08603287]
[1759108184246,4.2972,209.35,209.29,7.11]
[1759108186349,7.67,209.36,209.3,7.11]
[1759108187149,1.3993309,209.38,209.3,7.11]
[1759108187348,7.67,209.39,209.3,11.408]
[1759108187547,7.67,209.39,209.31,8.5093309]
[1759108188253,7.67,209.39,209.33,7.11]
[1759108188751,1.3993309,209.4,209.33,7.11]
[1759108188951,7.67,209.39,209.33,7.11]
[1759108189352,11.967,209.36,209.33,7.11]
[1759108189853,1.3993309,209.39,209.33,7.11]
[1759108190248,7.67,209.38,209.33,7.11]
[1759108190453,7.67,209.4,209.33,7.11]
[1759108191553,4.297,209.36,209.33,7.11]
[1759108191747,11.967,209.36,209.33,7.11]
[1759108192349,11.967,209.36,209.31,7.11]
[1759108192657,4.297,209.36,209.3,116.04]
[1759108192955,4.297,209.36,209.31,7.11]
[1759108193157,4.2965,209.38,209.31,7.11]
[1759108196861,4.296,209.41,209.33,7.14]
[1759108197659,4.296,209.41,209.34,4.2973]
[1759108197854,4.296,209.41,209.35,7.14]
[1759108198255,12.0354,209.44,209.35,13.6268014]
[1759108198465,4.2954,209.44,209.36,91.6]
[1759108198759,4.2954,209.44,209.37,7.14]
[1759108199458,4.2948,209.46,209.37,7.14]
[1759108200067,4.2952,209.45,209.39,7.14]
[1759108200267,7.74,209.47,209.39,7.14]
[1759108200560,4.2957,209.42,209.39,7.14]
[1759108200860,7.74,209.41,209.39,7.14]
[1759108201364,12.0357,209.42,209.39,7.14]
[1759108201660,12.0357,209.42,209.33,7.14]
[1759108201661,7.74,209.39,209.33,7.14]
[1759108203463,4.297,209.36,209.33,7.14]
[1759108203664,7.74,209.37,209.3,113.04]
[1759108204765,7.74,209.34,209.3,113.04]
[1759108205265,7.74,209.31,209.29,14.32346]
[1759108205462,7.74,209.31,209.25,7.14]
[1759108205764,7.74,209.31,209.25,21.56001662]
[1759108206361,12.0381,209.31,209.25,21.56001662]
[1759108206563,7.74,209.35,209.26,7.14]
[1759108207568,4.2975,209.33,209.26,7.14]
[1759108208266,12.0371,209.35,209.26,7.14]
[1759108208657,7.74,209.35,209.26,7.14]
[1759108208858,4.2975,209.33,209.26,7.14]
[1759108209058,7.74,209.32,209.26,7.14]
[1759108210063,7.74,209.36,209.26,7.14]
[1759108210258,66.8379,209.37,209.26,7.14]
[1759108210259,7.74,209.32,209.26,7.14]
[1759108210461,4.2983,209.29,209.25,14.42650195]
[1759108210769,7.74,209.31,209.24,0.83022199]
[1759108211567,4.2987,209.28,209.24,0.83022199]
[1759108211771,12.0387,209.28,209.24,7.97022199]
[1759108212267,12.0387,209.28,209.24,22.11865942]
[1759108213265,12.0387,209.28,209.25,7.12]
[1759108216573,4.2981,209.3,209.24,14.97865942]
[1759108216768,7.64,209.33,209.25,7.12]
[1759108217576,11.9377,209.33,209.25,11.419]
[1759108219075,11.9377,209.33,209.25,4.299]
[1759108219276,11.9377,209.33,209.27,7.12]
[1759108220677,4.2979,209.32,209.25,7.12]
[1759108223590,7.64,209.32,209.24,22.09865942]
[1759108223987,4.2979,209.31,209.24,22.09865942]
[1759108224589,4.2979,209.31,209.24,26.39795942]
[1759108225088,4.2982,209.3,209.24,26.39795942]
[1759108227393,4.2984,209.29,209.24,22.09865942]
[1759108227595,7.71,209.28,209.24,21.26843743]
[1759108227890,66.8523,209.33,209.24,21.26843743]
[1759108228089,7.71,209.32,209.24,21.26843743]
[1759108228691,12.0086,209.28,209.24,21.26843743]
[1759108230493,12.0081,209.3,209.24,21.26843743]
[1759108230694,12.0081,209.3,209.24,7.12]
[1759108231194,12.0081,209.3,209.24,21.57224263]
[1759108231397,12.0081,209.3,209.24,22.40379378]
[1759108235097,12.0081,209.3,209.24,15.28379378]
[1759108235399,12.0081,209.3,209.25,7.12]
[1759108235592,12.0081,209.3,209.24,15.28379378]
[1759108235788,4.2978,209.32,209.25,7.12]
[1759108236095,7.71,209.35,209.25,7.12]
[1759108236295,7.71,209.35,209.26,7.12]
[1759108237200,4.2967,209.37,209.26,7.12]
[1759108237400,7.71,209.38,209.29,7.12]
[1759108237699,7.71,209.38,209.31,7.12]
[1759108238600,7.71,209.38,209.31,11.4177]
[1759108239206,7.71,209.38,209.32,7.12]
[1759108241499,4.2959,209.41,209.32,4.2975]
[1759108241796,7.71,209.41,209.33,7.12]
[1759108243099,7.71,209.41,209.34,7.12]
[1759108246906,7.71,209.41,209.35,7.12]
[1759108247200,4.2952,209.44,209.35,7.12]
[1759108247396,7.71,209.45,209.37,7.12]
[1759108247603,7.71,209.45,209.38,7.12]
[1759108249103,12.0052,209.45,209.38,7.12]
[1759108249704,4.2954,209.44,209.38,7.12]
[1759108250205,7.71,209.43,209.38,7.12]
[1759108250408,4.2954,209.44,209.38,7.12]
[1759108250603,7.71,209.43,209.38,7.12]
[1759108251108,12.0054,209.44,209.38,7.12]
[1759108252212,7.71,209.46,209.4,7.12]
[1759108254607,7.71,209.46,209.4,8.52046902]
[1759108256017,12.005,209.46,209.4,8.52046902]
[1759108256213,7.71,209.46,209.4,7.12]
[1759108256420,7.71,209.46,209.37,1.40046902]
[1759108256421,7.32,209.46,209.37,1.40046902]
[1759108256813,7.32,209.42,209.36,124.65046902]
[1759108257816,4.2959,209.41,209.36,123.25]